Cogmind - Beta 10.2 @@@ ROGUE MODE // 2022.02.02 @ 18:18:11 Player: User Result: Destroyed by G-34 Mercenary with Small Laser Performance ------------- Evolutions (1) 500 Regions Visited (4) 800 Robots Destroyed (33) 165 Value Destroyed (832) 832 Prototype IDs (7) 140 Alien Tech Used (0) 0 Bonus (400) 400 TOTAL SCORE: 2837 Bonus ------- Pacifist 200 Entered Garrisons 200 Cogmind --------- Core Integrity 0/400 Matter 256/300 Energy 460/460 System Corruption 5% Temperature Cool (339) Movement Walking (210) Ox3 Location -9/Garrison Parts ------- > --- POWER (2) -------- Heavy Ion Engine Heavy Ion Engine > --- PROPULSION (2) --- Aluminum Leg > --- UTILITY (3) ------ Heat Sink Small Storage Unit Medium Storage Unit > --- WEAPON (2) ------- Improved Medium Laser Improved Assault Rifle > --- INVENTORY (10) --- Improved Assault Rifle Peak State ------------ > --- POWER ------------ Heavy Ion Engine Heavy Ion Engine > --- PROPULSION ------- Aluminum Leg Aluminum Leg > --- UTILITY ---------- Small Storage Unit Medium Storage Unit Power Shielding > --- WEAPON ----------- Improved EM Shotgun Improved Heavy Machine Gun > --- INVENTORY -------- Heavy Ion Engine Heavy Ion Engine Improved EM Shotgun Improved Medium Laser Improved Medium Laser Improved Assault Rifle Improved Assault Rifle Improved Assault Rifle [Rating: 22] Favorites ----------- Power Heavy Ion Engine Engine Heavy Ion Engine Propulsion Aluminum Leg Treads Light Treads Leg Aluminum Leg Flight Unit Improved Flight Unit Utility Small Storage Unit Device Heat Sink Storage Small Storage Unit Protection Power Shielding Weapon Improved Heavy Machine Gun Energy Gun Improved EM Shotgun Energy Cannon Light EM Pulse Cannon Ballistic Gun Improved Heavy Machine Gun Launcher Grenade Launcher Build | -11 -10 -9 -9 -9 ------- Run | Scr Mat Mat Sto Gar Slots Evolved 2 | . . 2 . . Power 1 | . . 1 . . Propulsion . | . . . . . Utility 1 | . . 1 . . Weapon . | . . . . . Parts Attached 32 | . 2 1 18 11 Power 5 | . . 1 2 2 Engine 5 | . . 1 2 2 Core . | . . . . . Reactor . | . . . . . Propulsion 8 | . . . 6 2 Treads 3 | . . . 2 1 Leg 4 | . . . 3 1 Wheel . | . . . . . Hover . | . . . . . Flight 1 | . . . 1 . Utility 4 | . 1 . 1 2 Device 1 | . . . . 1 Storage 1 | . . . 1 . Processor . | . . . . . Hackware . | . . . . . Protection 2 | . 1 . . 1 Artifact . | . . . . . Weapon 15 | . 1 . 9 5 Energy Gun 7 | . . . 4 3 Energy Cannon 2 | . . . 2 . Ballistic Gun 5 | . . . 3 2 Ballistic Cannon . | . . . . . Launcher 1 | . 1 . . . Special Weapon . | . . . . . Impact Weapon . | . . . . . Slashing Weapon . | . . . . . Piercing Weapon . | . . . . . Special Melee Weapon . | . . . . . Unidentified Prototypes 7 | . . . 7 . Parts Lost 18 | . . . 7 11 Power 3 | . . . 1 2 Propulsion 6 | . . . 3 3 Utility 2 | . . . . 2 Weapon 7 | . . . 3 4 Highest Loss Streak 11 | . . . 3 11 Average Slot Usage (%) 93 | . 91 88 93 92 Engine 21 | . 14 22 22 20 Treads 4 | . . . 2 18 Leg 17 | . 28 22 18 . Storage 17 | . 14 11 17 22 Protection 10 | . 5 11 11 8 Energy Gun 5 | . 7 . 6 3 Ballistic Gun 13 | . 14 11 12 17 Launcher 1 | . 7 11 1 . Naked Turns . | . . . . . Heaviest Build 37 | 13 15 20 36 37 Greatest Support 40 | 20 20 20 40 40 Greatest Overweight (x) 11 | . . . 11 3 Average Overweight (x) . | . . . . . Largest Inventory Capacity 10 | . 6 6 10 10 Average Capacity 8 | . 6 6 8 10 Most Carried 10 | . 6 4 10 9 Average Carried 6 | . 5 4 6 7 Final Capacity 10 | 6 6 6 10 10 Final Carried 9 | 6 5 4 9 1 Class Distribution -------------------- 100% | Mutant Dominant Class ---------------- Mutant | -10/Materials Mutant | -9/Materials Mutant | -9/Storage Mutant | -9/Garrison Resources | -11 -10 -9 -9 -9 ----------- Run | Scr Mat Mat Sto Gar Matter Collected 827 | 200 . 58 463 106 Remotely . | . . . . . Salvage Created 1387 | . . 58 1049 280 Parts 67 | . . 4 45 18 Haulers Intercepted 1 | . . . 1 . Recyclers Shooed 6 | . . . 6 . Parts Field Recycled . | . . . . . Retrieved Matter . | . . . . . Parts Self-Destructed . | . . . . . Prevented . | . . . . . Kills | -11 -10 -9 -9 -9 ------- Run | Scr Mat Mat Sto Gar Combat Hostiles Destroyed 23 | . . 1 13 9 Guns 21 | . . 1 11 9 Cannons 1 | . . . 1 . AOE 1 | . . . 1 . Classes Destroyed 8 | . . 1 7 . Worker 1 | . . . 1 . Hauler 1 | . . . 1 . Recycler 5 | . . . 5 . Operator 1 | . . . 1 . Watcher 2 | . . . 2 . Swarmer 7 | . . . 3 4 Grunt 9 | . . . 4 5 Sentry 7 | . . 1 6 . Best Kill Streak 6 | . . 1 4 6 Combat Bots Only 6 | . . 1 3 6 Max Kills in Single Turn 2 | . . 1 2 1 Gunslinging 1 | . . . 1 . Exploded 1 | . . . 1 . Melee . | . . . . . Uniques/NPCs Destroyed . | . . . . . Combat | -11 -10 -9 -9 -9 -------- Run | Scr Mat Mat Sto Gar Damage Taken 2710 | . . 174 997 1539 Core 402 | . . 30 140 232 Absorbed by Shields . | . . . . . Core Remaining (%) 100 | 100 100 . . . Volleys Fired 108 | . . 14 72 22 Largest 2 | . . 1 2 2 Hottest 79 | . . 20 76 79 Shots Fired 183 | . . 14 126 43 Gun 175 | . . 14 118 43 Cannon 6 | . . . 6 . Launcher 2 | . . . 2 . Special . | . . . . . Kinetic 121 | . . 14 78 29 Thermal 8 | . . . . 8 Explosive 2 | . . . 2 . Electromagnetic 52 | . . . 46 6 Robot Hit Streak 17 | . . 9 11 17 Robot Miss Streak 4 | . . 1 4 4 Penetration Max . | . . . . . Secondary Targets 3 | . . . 1 2 Max Gunslinging Chain 1 | . . . 1 1 Shots Hit Robots 125 | . . 12 86 27 Core Hits 51 | . . 2 36 13 Critical Hits 1 | . . 1 . . Critical Kills . | . . . . . Critical Parts Destroyed . | . . . . . Melee Attacks . | . . . . . Impact . | . . . . . Slashing . | . . . . . Piercing . | . . . . . Sneak Attacks . | . . . . . Combat Hostiles . | . . . . . Follow-up Attacks . | . . . . . Damage Inflicted 2285 | . . 179 1592 514 Guns 1949 | . . 179 1256 514 Cannons 133 | . . . 133 . Explosions 203 | . . . 203 . Melee . | . . . . . Ramming . | . . . . . Kinetic 1304 | . . 179 782 343 Thermal 213 | . . . 127 86 Explosive 76 | . . . 76 . Electromagnetic 692 | . . . 607 85 Impact . | . . . . . Slashing . | . . . . . Piercing . | . . . . . Highest Corruption 5 | . . . 5 5 Average Corruption 2 | . . . 1 5 Corruption Purged . | . . . . . Effects 7 | . . . 3 4 Message Errors 4 | . . . 1 3 Heat Flow Errors 1 | . . . 1 . Data Loss (minor) 2 | . . . 1 1 Overload Shots . | . . . . . Overflow Damage 33 | . . . 33 . Projectiles . | . . . . . Explosions 33 | . . . 33 . Melee . | . . . . . Knockbacks . | . . . . . Impact . | . . . . . Kinetic . | . . . . . Secondary . | . . . . . Self-Inflicted Damage 111 | . . . 111 . Shots 4 | . . . 4 . Rammed . | . . . . . Targets Rammed . | . . . . . Kicked . | . . . . . Crushed . | . . . . . Highest Temperature 372 | . . 1 246 372 Average Temperature 82 | . . 1 57 161 Received Heat Transfer 831 | . . 54 261 516 Effects 3 | . . . 3 . Energy Bleed 1 | . . . 1 . Interference 2 | . . . 2 . Siege Activations . | . . . . . Robots Corrupted . | . . . . . Combat Hostiles . | . . . . . Parts Fried 3 | . . . 3 . Impact Corruptions . | . . . . . Robots Melted . | . . . . . Combat Hostiles . | . . . . . Parts Melted . | . . . . . Heat Transferred 335 | . . . 150 185 Parts Sabotaged . | . . . . . Parts Stolen . | . . . . . Parts Stripped . | . . . . . Power Chain Reactions 4 | . . . 4 . Missiles Intercepted . | . . . . . Alert | -11 -10 -9 -9 -9 ------- Run | Scr Mat Mat Sto Gar Peak Influence 332 | . 15 50 332 247 Initial 147 | . . 5 20 147 Average 112 | . 14 26 119 177 Maximum Alert Level 1 | . . . 1 1 Low Security (%) 83 | . 100 100 82 66 Level 1 16 | . . . 17 33 Level 2 . | . . . . . Level 3 . | . . . . . Level 4 . | . . . . . Level 5 . | . . . . . High Security . | . . . . . Max Security . | . . . . . Squads Dispatched 6 | . 2 . 4 . Investigation . | . . . . . Extermination . | . . . . . Reinforcement 3 | . 2 . 1 . Assault . | . . . . . Garrison 3 | . . . 3 . Intercept . | . . . . . Construction Impeded . | . . . . . Haulers Reinforced . | . . . . . Stealth | -11 -10 -9 -9 -9 --------- Run | Scr Mat Mat Sto Gar Distress Signals 2 | . . . 2 . Communications Jammed . | . . . . . Distress Signals . | . . . . . Times Spotted 33 | . 2 2 17 12 Peak Tracking Total 12 | . 1 2 6 12 Tactical Retreats . | . . . . . Traps | -11 -10 -9 -9 -9 ------- Run | Scr Mat Mat Sto Gar Traps Triggered 4 | . . . 4 . Indirectly . | . . . . . Trap Hack Attempts . | . . . . . Triggered . | . . . . . Disarmed . | . . . . . Reprogrammed . | . . . . . Reused . | . . . . . Traps Extracted . | . . . . . Installed . | . . . . . Triggered . | . . . . . Machines | -11 -10 -9 -9 -9 ---------- Run | Scr Mat Mat Sto Gar Machines Disabled 6 | . . . 6 . Max in Single Turn 1 | . . . 1 . Machines Sabotaged . | . . . . . Garrisons Compromised . | . . . . . Overloaded Fab Kills . | . . . . . Fab Network Shutdowns . | . . . . . Hacking | -11 -10 -9 -9 -9 --------- Run | Scr Mat Mat Sto Gar Machines Accessed 4 | . . . 4 . Terminals 2 | . . . 2 . Fabricators . | . . . . . Repair Stations . | . . . . . Recycling Units 1 | . . . 1 . Scanalyzers . | . . . . . Garrison Access 1 | . . . 1 . Total Hacks 6 | . . . 6 . Successful 4 | . . . 4 . Failed 2 | . . . 2 . Catastrophic . | . . . . . Database Lockouts . | . . . . . Manual . | . . . . . Terminals 3 | . . . 3 . Fabricators . | . . . . . Repair Stations . | . . . . . Recycling Units 1 | . . . 1 . Scanalyzers . | . . . . . Garrison Access 2 | . . . 2 . Terminal Hacks 2 | . . . 2 . Open Door 2 | . . . 2 . Fabricator Hacks . | . . . . . Repair Station Hacks . | . . . . . Recycling Unit Hacks 1 | . . . 1 . Retrieve Components 1 | . . . 1 . Scanalyzer . | . . . . . Garrison Access Hacks 1 | . . . 1 . Unlock Access 1 | . . . 1 . Unauthorized Hacks . | . . . . . Terminals . | . . . . . Fabricators . | . . . . . Repair Stations . | . . . . . Recycling Units . | . . . . . Scanalyzers . | . . . . . Garrison Access . | . . . . . Data Cores Recovered . | . . . . . Used . | . . . . . Hacking Detections 3 | . . . 3 . Full Trace Events . | . . . . . Feedback Events . | . . . . . Feedback Blocked . | . . . . . Robot Schematics Acquired . | . . . . . Robots Built . | . . . . . Matter . | . . . . . Time . | . . . . . Total Robot Build Rating . | . . . . . Part Schematics Acquired . | . . . . . Parts Built . | . . . . . Matter . | . . . . . Time . | . . . . . Total Part Build Rating . | . . . . . Parts Repaired . | . . . . . Time . | . . . . . Parts Recycled . | . . . . . Recycled Matter . | . . . . . Retrieved Matter . | . . . . . Retrieved Components 5 | . . . 5 . Parts Scanalyzed . | . . . . . Part Schematics Acquired . | . . . . . Parts Damaged . | . . . . . Bothacking | -11 -10 -9 -9 -9 ------------ Run | Scr Mat Mat Sto Gar Used RIF Installer . | . . . . . Robots Hacked . | . . . . . Non-combat . | . . . . . Combat . | . . . . . Robot Hacks Applied . | . . . . . Relay Couplers Released . | . . . . . Robots Rewired . | . . . . . Allies Hacked . | . . . . . Hacks Repelled . | . . . . . Allies | -11 -10 -9 -9 -9 -------- Run | Scr Mat Mat Sto Gar Total Allies . | . . . . . Largest Group . | . . . . . Highest-Rated Group . | . . . . . Highest-Rated Ally . | . . . . . Total Orders . | . . . . . Ally Attacks . | . . . . . Total Damage . | . . . . . Kills . | . . . . . Allies Corrupted . | . . . . . Allies Melted . | . . . . . Intel | -11 -10 -9 -9 -9 ------- Run | Scr Mat Mat Sto Gar Robot Analysis Total . | . . . . . Derelict Logs Recovered . | . . . . . Drone Launches . | . . . . . Drone Recoveries . | . . . . . Exploration | -11 -10 -9 -9 -9 ------------- Run | Scr Mat Mat Sto Gar Turns Passed 1207 | . 122 52 886 147 Spaces Moved 583 | 1 95 20 423 44 Core 1 | . . . 1 . Treads 108 | . . . 65 43 Legs 474 | 1 95 20 357 1 Wheels . | . . . . . Hover . | . . . . . Flight . | . . . . . Fastest Speed 120 | 120 120 120 120 160 Average Speed 146 | 120 120 120 152 162 Slowest Speed 600 | 120 120 120 600 210 Overloaded Moves . | . . . . . Propulsion Burnouts . | . . . . . Robots Hopped . | . . . . . Cave-ins Triggered . | . . . . . Exploration Rate (%) 19 | 2 24 3 47 20 Regions Visited 4 Branch Regions 1 Pre-discovered Areas . | . . . . . Known Exits Taken 1 | . . . 1 . Unknown Exits Taken 3 | 1 1 1 . . Scrap Searched . | . . . . . Spaces Dug . | . . . . . Terrain Destroyed 30 | . . . 30 . Melee . | . . . . . Projectile 1 | . . . 1 . AOE 29 | . . . 29 . Terrain Rammed . | . . . . . Walls Destroyed . | . . . . . Machines Disabled . | . . . . . Actions | -11 -10 -9 -9 -9 --------- Run | Scr Mat Mat Sto Gar Total 770 | . 104 34 553 79 Wait 3 | . . . 3 . Move 580 | . 94 19 423 44 Hop . | . . . . . Pick Up 31 | . 4 . 25 2 Fast Attach . | . . . . . Attach 24 | . 1 1 12 10 Detach . | . . . . . Swap 8 | . 1 . 6 1 Drop 16 | . 4 . 12 . Fire 108 | . . 14 72 22 Melee . | . . . . . Ram . | . . . . . Kick . | . . . . . Crush . | . . . . . Escape Stasis . | . . . . . Rewire . | . . . . . Trap . | . . . . . Miscellaneous . | . . . . . Route ------- -11/Scrapyard -10/Materials -9/Materials -9/Storage -9/Garrison History --------- Turn | Location | Event 1 | -11/Scrapyard | Discovered new exit (range 0) 1 | -11/Scrapyard | Entered Materials 119 | -10/Materials | Discovered new exit (range 3) 123 | -10/Materials | Entered another Materials area 123 | -9/Materials | Evolved 2 slots: Power x1, Utility x1 129 | -9/Materials | Discovered new exit (range 16) 175 | -9/Materials | Entered Storage 318 | -9/Storage | Build established: Mutant 836 | -9/Storage | Garrison activated, responded to threat 951 | -9/Storage | Lost 3 parts (2n1w) 1061 | -9/Storage | Identified exit to Garrison 1061 | -9/Storage | Entered Garrison 1138 | -9/Garrison | Core integrity fell below 50% 1176 | -9/Garrison | Core integrity fell below 20% 1208 | -9/Garrison | Destroyed by G-34 Mercenary with Small Laser Last Messages --------------- 01164_ G-34 Mercenary destroyed. 01166_ Lgt. Treads destroyed. 01166_ Hvy. Ion Engine destroyed. 01168_ Imp. EM Shotgun destroyed. 01172_ Imp. Assault Rifle destroyed. 01177_ Acquired 37 matter. 01179_ Acquired 50 matter. 01182_ Lgt. Armor Plating destroyed. 01186_ Hvy. Ion Engine destroyed. 01186_ S-10 Pest destroyed. 01187_ Acquired 14 matter. 01188_ 5MFQRZG0KF6AKFJT0:JB5EPUAWQQ7GD 01190_ Acquired 5 matter. 01194_ Acquired Aluminum Leg. 01197_ Imp. Medium Laser destroyed. 01197_ Lgt. Treads destroyed. 01198_ Acquired Heat Sink. 01201_ S-10 Pest destroyed. 01205_ SN4NRLI/,0JJJF5=/ ZTMRFKA 01207_ G-34 Mercenary destroyed. Map ----- +----------------------------------------------------+ | ????????????????????????????????????# #?????????? | | ????????????????????????????????????# #?????????? | | ????????????????????????????????????# #?????????? | | ??????????????????????????????####??# #?????????? | | ?????????????????????????????? #??# #?????????? | | ?????????????????????????????? #??# #?????????? | | ??????????????????????????????# #??# #?????????? | | ??????????????????????????????# #??# #?????????? | | ??????????????????????????????# #??# #?????????? | | ??????????????????????????????# #??# #????????## | | ??????????????????????????????# #??# #????????# | | ????????????????###############++####++########## | | ????????????????# ^ | | ????????????????# | | ????????????????# | | ????????????????# ####### ##################### | | ??????????????????????????# #???????????????????? | | ??????????????????????????# #???????????????????? | | ??????????????????????????# #???????????????????? | | ??????????????????????????# =#####"""##### #?????? | | ??????????????????????????+ % #???? | | ??????????????????????????#=% #???? | | ???????????""" ##?????????#[ ##### ####????????? | | ?????????? #######*g#???????"#??????????? | | ?????????? =%*g %%**g#???????????????????? | | ?????????? ! [!@%[*#???????????????????? | | ??????????# ## ####+#####???????????????????? | | ????????????????#??????# ????????????????????????? | | ??????????????????????? ?????????????????????????? | | ??????????????????????#??????????????????????????? | | ?????????????????????????????????????????????????? | | ?????????????????????????????????????????????????? | | ?????????????????????????????????????????????????? | | ?????????????????????????????????????????????????? | | ?????????????????????????????????????????????????? | | ?????????????????????????????????????????????????? | | ?????????????????????????????????????????????????? | | ?????????????????????????????????????????????????? | | ?????????????????????????????????????????????????? | | ?????????????????????????????????????????????????? | | ?????????????????????????????????????????????????? | | ?????????????????????????????????????????????????? | | ?????????????????????????????????????????????????? | | ?????????????????????????????????????????????????? | | ?????????????????????????????????????????????????? | | ?????????????????????????????????????????????????? | | ?????????????????????????????????????????????????? | | ?????????????????????????????????????????????????? | | ?????????????????????????????????????????????????? | | ?????????????????????????????????????????????????? | +----------------------------------------------------+ Best States ------------- Heat Dissipation 38 Energy Generation 23 Energy Capacity 460 Matter Stores 300 Matter Capacity 300 Sight Range 16 Terrain Scan Density 10 Armor Coverage 150 Power Shielding 33 Evasion (%) 40 Recoil Reduction 2 Item Schematics ----------------- None Robot Schematics ------------------ None Fabricated ------------ Nothing Alien Tech Used ----------------- None Achievements -------------- None Challenges ------------ None Game ------ Seed WarpSmartbombDesublimator Manual? 0 Play Time 00:14:17 Cumulative 41.0 hours Start 2022.02.02 @ 18:05:29 End 2022.02.02 @ 18:18:11 Sessions 1 Manual Loads 0 Difficulty Rogue Special Mode None Game No. 75 Rogue 75 Adventurer 0 Explorer 0 Win Type - Total 0 Types 0/0/0/0/0/0/0/0/0 Lore% 35 Gallery% 46 Achievement% 27 Wizard Run 0 Options --------- ASCII 0 Keyboard 0 Movement Mouse Keybinds 0 Fullscreen 2 Font 20/Terminus Map View 66x50 Tactical HUD 1 Map Filters NONE Filters NONE Steam 1 RUN: c302ea4f-4b13-4469-b152-055e539b5c9c